bitfinex/quotes_ETHUSD_20250720
["timestamp","ask_amount","ask_price","bid_price","bid_amount"]
[1753042054705,3.49617737,3734.2,3733.5,2.67839687]
[1753042054891,2.67803999,3734.1,3733.4,2.99162204]
[1753042055087,0.8182,3734.2,3733.4,0.31310953]
[1753042055282,2.67830275,3733.8,3733.2,0.4325]
[1753042055610,2.67818788,3733.9,3733.2,3.11116499]
[1753042056434,2.67825045,3733.8,3733.2,3.11116499]
[1753042056733,0.55,3734.1,3733.1,0.02]
[1753042057121,2.67837627,3733.7,3733.1,0.02]
[1753042057299,2.67838596,3733.6,3733.1,0.02]
[1753042057505,2.67857958,3733.4,3733.1,0.02]
[1753042057812,2.67844161,3733.6,3733.1,0.02]
[1753042057996,2.67840335,3733.6,3733.1,0.02]
[1753042058559,2.67843813,3733.6,3733.1,0.02]
[1753042058911,2.67833076,3733.7,3733.1,0.02]
[1753042059129,2.67838736,3733.6,3733.1,0.02]
[1753042059336,0.55,3733.9,3733.1,0.02]
[1753042059545,0.8182,3734.2,3733.2,0.4325]
[1753042059761,7.34616926,3733.9,3733.2,3.11115351]
[1753042059949,0.55,3734.1,3733.1,0.02]
[1753042060156,0.55,3734.1,3732.4,0.001]
[1753042060157,7.05786945,3732.5,3732.4,0.001]
[1753042060447,11.74886945,3732.5,3732.4,0.001]
[1753042060815,11.74686945,3732.5,3732.4,0.001]
[1753042061129,12.51951909,3732.5,3732.4,1e-08]
[1753042061447,3.23010291,3731.2,3731.1,0.02]
[1753042061858,3.23103702,3729.9,3728.7,0.4325]
[1753042062017,5.46,3729.9,3728.5,0.1336]
[1753042062218,1.4466,3729.9,3728.9,0.4325]
[1753042062567,2.68086505,3730.2,3729.8,0.4335]
[1753042062859,0.55,3730.1,3729.8,0.001]
[1753042063059,0.1336,3729.9,3729.8,0.001]
[1753042063792,2.68125268,3729.6,3728.3,0.001]
[1753042063942,0.55,3729.4,3728.3,0.001]
[1753042064278,0.55,3728.9,3728.3,2.68315785]
[1753042064438,0.55,3728.9,3728.3,0.001]
[1753042064640,0.55,3729.2,3728.3,0.001]
[1753042064844,0.55,3729.6,3728.4,0.4325]
[1753042065153,0.806,3729.7,3729.3,2.68144968]
[1753042065354,4.772,3729.9,3729.3,2.68143042]
[1753042065576,7.45304056,3729.9,3729.0,2.68168409]
[1753042065745,3.2308818,3730.2,3729.3,2.68145535]
[1753042065946,7.99791853,3730.1,3729.3,2.68142723]
[1753042066162,0.55,3730.0,3729.0,2.68168409]
[1753042066459,0.55,3730.0,3729.3,2.68145829]
[1753042067060,0.806,3730.3,3729.3,0.53631158]
[1753042067255,0.8333,3730.9,3729.4,0.4325]
[1753042067489,0.8333,3730.9,3730.7,2.68040996]
[1753042067693,0.02,3730.9,3730.8,2.68039026]
[1753042067992,0.0859,3730.9,3729.0,3.11417244]
[1753042068192,0.55,3730.2,3729.2,2.68151476]
[1753042068490,2.68099681,3730.0,3729.0,3.11418186]
[1753042068657,2.68099681,3730.0,3729.2,2.68148933]
[1753042068858,2.68099681,3730.0,3729.4,0.001]
[1753042069092,0.55,3730.0,3729.4,0.001]
[1753042069309,3.26447911,3730.0,3729.4,0.001]
[1753042069461,0.55,3730.0,3729.4,0.001]
[1753042070299,3.49406796,3730.3,3729.4,0.001]
[1753042070300,0.55,3730.6,3729.5,0.4325]
[1753042070508,2.68088751,3730.2,3729.4,2.68237871]
[1753042071022,3.23102877,3730.0,3729.4,0.001]
[1753042071733,3.23097651,3730.0,3729.4,0.001]
[1753042072129,2.68103342,3730.0,3729.4,0.001]
[1753042072427,0.55,3730.0,3729.4,0.001]
[1753042072626,3.26448396,3730.0,3729.4,0.001]
[1753042073125,0.55,3730.2,3729.6,2.68124416]
[1753042073693,0.1336,3729.8,3729.7,2.68115893]
[1753042073893,0.02,3730.9,3729.7,0.4325]
[1753042074110,0.1336,3730.5,3730.1,2.68086219]
[1753042074311,0.1336,3730.5,3730.2,2.68081724]
[1753042074534,0.1336,3730.5,3729.7,0.5661]
[1753042074696,0.1336,3730.5,3729.8,2.6811089]
[1753042074900,0.1336,3730.5,3730.1,2.68088573]
[1753042075098,0.1336,3730.5,3729.9,2.68101894]
[1753042075099,0.1336,3730.5,3729.8,0.4325]
[1753042075434,0.1336,3730.5,3730.0,2.68089822]
[1753042075727,0.1336,3730.5,3730.1,2.68089243]
[1753042076235,0.1336,3730.5,3729.7,0.5661]
[1753042076624,2.68090438,3730.1,3729.4,0.001]
[1753042076826,0.55,3729.9,3729.4,0.001]
[1753042077027,3.23132457,3729.5,3729.4,0.001]
[1753042077226,7.98684112,3729.5,3729.4,0.001]
[1753042077401,8.73812457,3729.5,3729.4,0.001]
[1753042078338,1.3348,3729.5,3729.4,0.001]
[1753042078538,3.23132457,3729.5,3729.4,0.001]
[1753042078750,3.26484112,3729.5,3729.4,0.001]
[1753042079257,0.58351655,3729.5,3729.4,0.001]
[1753042079457,3.69606068,3729.5,3729.4,0.001]
[1753042079749,3.63016068,3729.5,3729.4,0.001]
[1753042080352,8.40806068,3729.5,3729.4,0.001]
[1753042080554,10.45107759,3729.9,3729.4,0.001]
[1753042080555,7.77,3729.9,3729.4,0.001]
[1753042081037,4.709,3730.2,3729.5,0.4612]
[1753042081354,2.68101523,3730.0,3729.4,0.8224]
[1753042081538,4.05022457,3729.5,3729.4,0.001]
[1753042081746,3.23211565,3728.4,3728.3,0.001]
[1753042081956,5.265,3728.4,3728.3,0.001]
[1753042082158,0.55,3728.5,3728.3,0.001]
[1753042083052,0.55,3728.6,3728.3,0.001]
[1753042083226,2.68211565,3728.4,3728.3,0.001]
[1753042084050,5.5299,3728.5,3728.3,0.001]
[1753042084454,2.68211565,3728.4,3728.3,0.001]
[1753042084819,4.47594103,3728.4,3728.3,0.001]
[1753042085046,15.24594103,3728.4,3728.3,0.001]
[1753042085245,2.68225953,3728.2,3727.1,0.02]
[1753042085517,7.08468777,3728.2,3727.1,0.02]
[1753042085722,4.3689,3728.2,3727.1,0.02]
[1753042085943,11.75615953,3728.2,3727.1,2.70304413]
[1753042086125,7.05115953,3728.2,3727.3,2.68288442]
[1753042086341,7.05115953,3728.2,3727.1,0.02]
[1753042086549,11.75215953,3728.2,3727.2,2.68297764]
[1753042087063,13.26148989,3728.2,3727.1,0.02]
[1753042087354,13.26148989,3728.2,3727.1,2.70299596]
[1753042087533,13.26148989,3728.2,3727.2,2.68296295]
[1753042088157,10.50933036,3728.2,3727.1,0.02]
[1753042088357,6.0659,3728.2,3727.6,2.68268623]
[1753042088519,0.8326,3728.8,3727.5,0.4612]
[1753042088736,4.72452374,3728.7,3727.1,0.02]
[1753042089040,2.68220595,3728.3,3727.5,2.68275608]
[1753042089263,5.241,3728.2,3727.1,0.02]
[1753042089467,5.241,3728.2,3727.5,2.68273568]
[1753042089668,5.241,3728.2,3727.3,2.68287364]
[1753042089837,5.241,3728.2,3727.6,2.68267512]
[1753042090039,5.241,3728.2,3727.7,2.68260769]
[1753042090362,0.55,3728.2,3727.3,2.68290079]
[1753042090561,5.232,3728.2,3727.4,2.68283441]
[1753042090768,5.232,3728.2,3727.3,2.68290176]
[1753042091077,7.91425953,3728.2,3728.1,0.021]
[1753042091244,0.55,3728.2,3728.1,0.021]
[1753042091444,5.232,3728.2,3728.1,0.021]
[1753042091780,5.225,3728.2,3728.1,0.021]
[1753042092282,7.90725953,3728.2,3728.1,0.021]
[1753042092475,8.69796441,3728.2,3728.1,0.021]
[1753042092837,4.02296441,3728.2,3728.1,0.021]
[1753042093041,6.01670488,3728.2,3728.1,0.021]
[1753042093241,5.226,3728.2,3728.1,0.021]
[1753042093512,5.216,3728.2,3728.1,0.021]
[1753042094063,0.55,3728.2,3728.1,0.021]
[1753042094259,5.216,3728.2,3728.1,0.021]
[1753042095081,7.89825953,3728.2,3728.1,0.021]
[1753042096070,8.9562971,3728.2,3728.1,0.021]
[1753042096472,12.0221971,3728.2,3728.1,0.021]
[1753042096658,12.7038971,3728.2,3728.1,0.021]
[1753042096845,12.7018971,3728.2,3728.1,0.021]
[1753042098053,8.63885953,3728.2,3728.1,0.021]
[1753042098471,3.99285953,3728.2,3728.1,0.021]
[1753042098786,5.194,3728.2,3728.1,0.021]
[1753042099303,0.002,3729.4,3728.1,0.4822]
[1753042099304,0.7907,3729.3,3728.1,0.4822]
[1753042099586,0.7907,3729.3,3728.4,2.68211565]
[1753042099587,0.1336,3728.5,3728.4,2.68211565]
[1753042099949,0.1336,3728.5,3728.4,0.4612]
[1753042100874,2.68225953,3728.2,3728.1,0.021]
[1753042101073,9.26838529,3728.2,3728.1,0.021]
[1753042101286,4.59985705,3728.2,3728.1,0.021]
[1753042101506,9.23785705,3728.2,3728.1,0.021]
[1753042101704,5.187,3728.2,3728.1,0.021]
[1753042102206,0.1336,3728.3,3728.1,3.16450669]
[1753042102410,2.68168416,3729.0,3728.1,3.16450669]
[1753042102411,4.634,3728.5,3728.3,2.68216123]
[1753042102568,4.7676,3728.5,3728.3,2.68216123]
[1753042102767,4.7676,3728.5,3728.4,3.14331565]
[1753042103007,0.1336,3728.5,3728.4,3.14331565]
[1753042103597,0.002,3729.4,3728.4,3.14331565]
[1753042103598,4.633,3729.4,3729.2,2.68146891]
[1753042103841,0.002,3729.4,3729.3,3.14266837]
[1753042104022,0.002,3729.4,3729.3,0.4612]
[1753042104324,0.002,3729.4,3729.3,3.14266837]
[1753042104528,0.1336,3730.1,3729.3,1.96052733]
[1753042104713,0.1336,3730.1,3729.4,0.4612]
[1753042105023,0.1336,3730.1,3729.8,2.68109192]
[1753042105323,0.1336,3730.1,3729.9,0.4612]
[1753042105900,0.02,3730.9,3730.2,2.68080611]
[1753042106095,0.02,3730.9,3730.0,3.14216514]
[1753042106096,0.02,3730.9,3730.0,0.4612]
[1753042106326,0.1336,3730.8,3730.2,0.1336]
[1753042106515,0.1336,3730.8,3730.3,0.4612]
[1753042106686,0.1336,3730.8,3730.7,2.68046211]
[1753042106887,0.1336,3730.8,3730.2,0.1336]
[1753042106888,0.1336,3730.8,3730.5,2.68059574]
[1753042107126,0.1336,3730.8,3730.7,0.4612]
[1753042108133,0.02,3730.9,3730.7,3.14163705]
[1753042108293,0.02,3730.9,3730.8,2.68039026]
[1753042108609,0.02,3730.9,3730.8,0.4733]
[1753042108818,0.02,3730.9,3730.8,3.15369026]
[1753042109018,0.02,3730.9,3730.8,0.4733]
[1753042109221,0.02,3730.9,3730.8,3.15369026]
[1753042109604,0.02,3730.9,3730.8,3.73711056]
[1753042109799,0.02,3730.9,3730.8,3.87071056]
[1753042110037,0.02,3730.9,3730.8,4.66331056]
[1753042111136,0.02,3730.9,3730.8,9.29231056]
[1753042112127,0.002,3731.7,3731.6,2.67981562]
[1753042112331,0.002,3731.7,3731.6,3.08139718]
[1753042112634,0.002,3731.7,3731.6,3.55469718]
[1753042112833,0.002,3731.7,3731.6,0.1336]
[1753042113147,0.002,3730.9,3730.8,4.07989026]
[1753042114246,0.002,3731.7,3731.6,2.67981562]
[1753042114604,0.002,3731.7,3731.6,3.28671562]
[1753042116034,0.002,3731.7,3731.6,0.1336]
[1753042116203,0.002,3731.7,3731.6,2.67981562]
[1753042116409,0.002,3731.7,3731.6,3.28671562]
[1753042116604,0.002,3731.7,3731.6,5.17478311]
[1753042117547,0.02,3731.9,3731.8,2.679672]
[1753042117848,0.02,3731.9,3731.8,7.305672]
[1753042118008,0.02,3731.9,3731.8,7.439272]
[1753042118205,0.02,3731.9,3731.8,7.912572]
[1753042118445,0.02,3731.9,3731.8,8.85942326]
[1753042120929,0.002,3732.4,3732.3,2.67931302]
[1753042121131,0.002,3732.4,3732.3,8.05471302]
[1753042121416,0.002,3732.4,3732.3,8.66161302]
[1753042121616,0.002,3732.4,3732.3,9.7957142]
[1753042123021,0.002,3732.4,3731.9,4.624]
[1753042123428,0.002,3732.4,3732.2,2.67937258]
[1753042123617,0.002,3732.4,3732.1,2.67943181]
[1753042123831,0.002,3732.4,3731.9,4.624]
[1753042124032,0.002,3732.4,3732.3,2.67931302]
[1753042124458,0.002,3732.4,3732.3,3.15261302]
[1753042125250,0.002,3732.4,3732.3,4.19821635]
[1753042125469,0.002,3732.4,3732.3,3.15261302]
[1753042127365,0.002,3732.4,3732.3,4.622]
[1753042127660,0.002,3732.4,3732.3,7.77461302]
[1753042127862,0.002,3732.4,3732.3,5.0953]
[1753042128056,0.002,3732.4,3732.3,7.77461302]
[1753042128932,0.002,3732.4,3732.3,8.82001883]
[1753042129345,0.002,3732.4,3732.3,9.60181883]
[1753042129769,0.002,3732.4,3732.3,4.97981883]
[1753042129972,0.002,3732.4,3732.3,9.60081883]
[1753042130862,0.002,3732.7,3732.6,2.67909767]
[1753042131173,0.002,3732.7,3732.6,8.79600751]
[1753042131678,0.002,3732.7,3732.6,9.26930751]
[1753042133079,0.002,3732.7,3732.6,9.40290751]
[1753042133578,0.002,3732.7,3732.6,0.1336]
[1753042133805,0.002,3732.7,3732.6,4.7536]
[1753042134005,0.002,3732.7,3732.3,0.1336]
[1753042134169,2.67910437,3732.6,3732.4,4.619]
[1753042134368,0.7624,3732.4,3731.1,1.2992]
[1753042134570,0.55,3732.0,3731.5,0.1336]
[1753042134781,2.67997123,3731.4,3731.2,0.1336]
[1753042135000,2.67991745,3731.5,3730.6,2.68053396]
[1753042135196,0.1336,3731.5,3730.9,2.81390542]
[1753042135492,2.81372384,3731.2,3730.5,2.81420581]
[1753042135881,0.1336,3731.2,3731.1,2.68017474]
[1753042136116,0.55,3732.2,3731.1,5.0913]
[1753042136316,0.55,3732.2,3731.2,0.4733]
[1753042136615,3.22938558,3732.2,3731.5,2.67986906]
[1753042136971,3.22938558,3732.2,3731.2,0.4733]
[1753042136972,0.55,3732.0,3731.2,0.4733]
[1753042137172,0.55,3731.8,3731.2,2.68009549]
[1753042137414,0.7624,3732.3,3731.1,4.619]
[1753042137415,0.03349679,3731.7,3731.1,4.619]
[1753042137589,3.22961172,3731.9,3731.2,2.68006545]
[1753042137990,0.55,3731.9,3731.3,2.68001779]
[1753042138190,0.24635182,3732.2,3731.4,0.4276]
[1753042138388,0.7624,3732.3,3731.7,2.67972822]
[1753042138697,0.7624,3732.3,3731.7,2.67973492]
[1753042139480,0.24634044,3732.6,3732.2,2.67938481]
[1753042139681,0.7872,3732.7,3731.8,3.10726068]
[1753042140013,0.7872,3732.7,3732.3,2.6792489]
[1753042140175,0.7872,3732.7,3732.1,2.67942168]
[1753042140508,0.7872,3732.7,3732.3,2.67925855]
[1753042140674,0.7872,3732.7,3731.6,0.8199]
[1753042140874,0.55,3732.4,3731.7,4.618]
[1753042141111,3.26261877,3732.6,3731.7,4.618]
[1753042141112,2.67920028,3732.5,3731.7,4.617]
[1753042141285,2.67931302,3732.3,3731.7,4.617]
[1753042141611,0.55,3732.5,3731.7,4.617]
[1753042141811,0.55,3732.6,3731.8,0.4276]
[1753042141987,0.7872,3732.7,3731.8,0.4276]
[1753042142408,3.46624077,3732.7,3732.0,2.6795217]
[1753042142914,0.7872,3732.7,3731.9,0.4276]
[1753042143116,0.002,3732.7,3732.0,2.6795284]
[1753042143293,0.002,3732.7,3732.1,0.31071284]
[1753042143613,0.002,3732.7,3732.3,2.67924908]
[1753042143819,0.002,3732.7,3732.3,2.67931284]
[1753042143977,0.002,3732.7,3732.4,2.67923714]
[1753042144183,0.002,3732.7,3732.5,2.67916945]
[1753042144487,0.002,3732.7,3732.4,3.10681615]
[1753042144691,0.002,3732.7,3732.4,0.4276]
[1753042145013,0.002,3732.7,3732.2,2.67932987]
[1753042145389,0.35172041,3732.7,3731.4,0.4276]
[1753042145593,2.67924144,3732.4,3731.7,2.67969681]
[1753042145791,0.55,3732.0,3731.2,0.001]
[1753042145990,2.71316446,3731.9,3731.2,0.001]
[1753042146194,0.1336,3731.5,3731.2,0.001]
[1753042146413,2.67996481,3731.4,3731.2,0.001]
[1753042146935,0.1336,3731.5,3731.2,0.001]
[1753042147336,0.55,3732.2,3731.2,0.4286]
[1753042147645,0.1336,3731.9,3731.3,0.1336]
[1753042147810,0.1336,3731.9,3731.3,2.81361832]
[1753042148441,0.1336,3731.9,3731.3,0.1336]
[1753042148743,0.1336,3731.9,3731.5,2.67981795]
[1753042148945,0.1336,3731.9,3731.4,2.67988926]
[1753042149120,0.1336,3731.9,3731.5,0.4276]
[1753042149841,0.1336,3731.9,3731.6,2.67981562]
[1753042150057,0.1336,3731.9,3731.5,3.10743743]
[1753042150540,0.1336,3731.9,3731.5,3.10746308]
[1753042150937,0.7671,3732.3,3731.6,0.4276]
[1753042151235,0.1336,3732.2,3731.9,2.67959006]
[1753042151741,0.1336,3732.2,3731.6,0.5612]
[1753042151941,0.1336,3732.2,3731.6,3.24096796]
[1753042152142,2.67961332,3731.9,3731.2,0.001]
[1753042152507,0.55,3731.7,3731.2,0.001]
[1753042152812,0.8288,3731.4,3731.2,0.001]
[1753042153238,0.8288,3731.4,3731.2,2.68108286]
[1753042153439,3.50878473,3731.4,3731.2,0.001]
[1753042153620,0.8288,3731.4,3731.2,0.001]
[1753042154240,0.55,3731.3,3731.2,0.001]
[1753042154767,0.8312,3732.1,3731.2,0.001]
[1753042155065,2.6796002,3731.9,3731.2,3.10869621]
[1753042155244,0.55,3732.0,3731.2,5.0406]
[1753042155567,3.26302503,3732.0,3731.3,2.67997385]
[1753042155763,0.55,3732.0,3731.6,2.67981503]
[1753042155966,0.55,3732.0,3731.5,2.67986561]
[1753042156266,0.8312,3732.1,3731.2,0.001]
[1753042156470,0.8312,3732.5,3731.3,1.2196]
[1753042156679,4.612,3732.2,3731.7,2.67967602]
[1753042157048,0.02,3732.9,3731.8,3.10724488]
[1753042157253,0.55,3732.5,3731.9,2.67954761]
[1753042157453,5.161,3732.5,3731.9,2.67954761]
[1753042157972,5.161,3732.5,3732.0,2.67951365]
[1753042158171,5.161,3732.5,3731.9,2.67958126]
[1753042158372,0.55,3732.3,3731.7,2.67969979]
[1753042158777,0.55,3732.4,3731.4,0.4276]
[1753042158987,0.55,3732.4,3731.9,2.67953082]
[1753042159173,0.002,3732.7,3732.0,2.67947755]
[1753042159368,0.002,3732.7,3731.4,0.4276]
[1753042159681,0.55,3731.8,3731.2,0.001]
[1753042159883,0.55,3731.4,3731.2,0.001]
[1753042160049,2.67991307,3731.5,3731.2,0.001]
[1753042160050,3.26353146,3731.3,3731.2,0.001]
[1753042160647,7.87253146,3731.3,3731.2,0.001]
[1753042160856,7.83903108,3731.3,3731.2,0.001]
[1753042161585,7.90893108,3731.3,3731.2,0.001]
[1753042161785,8.9678155,3731.3,3731.2,0.001]
[1753042162170,12.7729155,3731.3,3731.2,0.001]
[1753042162565,12.7020155,3731.3,3731.2,0.001]
[1753042162764,12.7719155,3731.3,3731.2,0.001]
[1753042163987,11.64313108,3731.3,3731.2,0.001]
[1753042165363,7.10503108,3731.3,3731.2,0.001]
[1753042165594,19.48203108,3731.3,3731.2,1e-08]
[1753042166289,14.87503108,3731.3,3731.2,1e-08]
[1753042166488,19.48203108,3731.3,3731.2,1e-08]
[1753042166789,21.42551799,3731.3,3731.2,1e-08]
[1753042167553,16.81851799,3731.3,3731.2,1e-08]
[1753042167758,21.42551799,3731.3,3731.2,1e-08]
[1753042169376,16.81851799,3731.3,3731.2,1e-08]
[1753042169689,21.42451799,3731.3,3731.2,1e-08]
[1753042171295,16.81851799,3731.3,3731.2,1e-08]
[1753042171797,21.42351799,3731.3,3731.2,1e-08]
[1753042172796,16.74861799,3731.3,3731.2,1e-08]
[1753042173162,21.42351799,3731.3,3731.2,1e-08]
[1753042174760,7.01200581,3730.5,3730.4,1e-08]
[1753042174961,19.97691872,3730.5,3730.4,1e-08]
[1753042175397,20.04681872,3730.5,3730.4,1e-08]
[1753042175961,15.44281872,3730.5,3730.4,1e-08]
[1753042176161,20.04681872,3730.5,3730.4,1e-08]
[1753042177194,15.44281872,3730.5,3730.4,1e-08]
[1753042177400,20.04581872,3730.5,3730.4,1e-08]
[1753042177760,15.37291872,3730.5,3730.4,1e-08]
[1753042177964,19.97491872,3730.5,3730.4,1e-08]
[1753042178393,15.83400581,3730.5,3730.4,1e-08]
[1753042178999,15.60260581,3730.5,3730.4,1e-08]
[1753042179203,11.00060581,3730.5,3730.4,1e-08]
[1753042179524,15.60260581,3730.5,3730.4,0.45500001]
[1753042181107,20.29,3731.7,3730.4,0.45500001]
[1753042181322,2.679672,3731.8,3730.6,0.7856]
[1753042181495,0.1336,3730.8,3730.6,0.7856]
[1753042181683,4.7336,3730.8,3730.7,0.455]
[1753042182388,4.6,3731.0,3730.7,0.455]
[1753042182583,4.6,3731.0,3730.6,0.7856]
[1753042182584,7.28026557,3731.0,3730.8,0.455]
[1753042182823,0.98994939,3731.9,3730.9,0.455]
[1753042183021,0.1336,3731.2,3730.9,0.455]
[1753042183193,4.599,3731.1,3730.9,0.455]
[1753042183388,4.599,3731.1,3730.7,2.68044783]
[1753042183584,0.1336,3731.2,3731.0,0.455]
[1753042183816,4.599,3731.1,3731.0,0.455]
[1753042184025,2.67964695,3731.9,3731.1,2.68017474]
[1753042184221,0.1336,3731.5,3731.1,2.68017474]
[1753042184431,0.1336,3731.5,3731.2,3.13509959]
[1753042184631,4.598,3731.4,3731.3,0.455]
[1753042184836,4.598,3731.4,3731.3,3.13503108]
[1753042185436,0.1336,3731.5,3731.3,0.455]
[1753042185605,4.598,3731.4,3731.3,2.68002256]
[1753042185805,4.598,3731.4,3731.2,2.68009978]
[1753042186041,4.598,3731.4,3731.1,2.68014927]
[1753042186334,4.598,3731.4,3731.2,1.2686]
[1753042186537,0.1336,3731.5,3731.4,2.67995926]
[1753042186741,0.7743,3732.5,3731.6,2.67981249]
[1753042186958,0.1336,3731.9,3731.7,0.455]
[1753042187541,0.1336,3731.9,3731.8,0.455]
[1753042187720,4.7296,3731.9,3731.8,0.455]
[1753042187903,0.1336,3731.9,3731.8,0.455]
[1753042188104,4.595,3732.2,3731.9,3.49313485]
[1753042188308,4.7286,3732.2,3732.0,0.455]
[1753042188950,4.7286,3732.2,3732.1,0.455]
[1753042189737,0.1336,3732.2,3732.1,0.455]
[1753042191737,0.1336,3732.2,3732.1,3.1344566]
[1753042191938,0.002,3732.5,3732.4,2.67924123]
[1753042192147,0.002,3732.5,3732.2,5.35870127]
[1753042192148,0.002,3732.5,3732.3,0.1336]
[1753042192347,0.002,3732.5,3732.3,0.455]
[1753042192510,0.002,3732.5,3732.4,0.455]
[1753042193134,4.593,3732.5,3732.4,0.455]
[1753042193324,0.002,3732.5,3732.4,0.455]
[1753042193537,4.593,3732.5,3732.4,0.455]
[1753042193853,0.002,3732.5,3732.4,0.455]
[1753042194026,4.593,3732.5,3732.4,0.455]
[1753042195162,5.2766,3732.5,3732.0,2.67947454]
[1753042195460,0.71908961,3732.5,3732.1,0.455]
[1753042195782,0.55,3732.3,3732.2,0.455]
[1753042195937,0.1336,3732.3,3732.2,0.455]
[1753042196137,4.7226,3732.3,3732.2,0.455]
[1753042196341,0.1336,3732.3,3732.2,0.455]
[1753042196670,4.7226,3732.3,3732.2,0.455]
[1753042197630,4.7216,3732.3,3732.2,3.13438481]
[1753042197861,0.1336,3732.3,3732.2,0.455]
[1753042198165,4.7206,3732.3,3732.2,0.455]
[1753042199735,4.7196,3732.3,3732.2,0.455]
[1753042200558,0.1336,3732.3,3732.2,0.455]
[1753042200758,0.55,3732.0,3731.7,0.1336]
[1753042200947,2.67974567,3731.7,3731.4,0.4296]
[1753042201145,2.67988744,3731.5,3730.8,0.4296]
[1753042201367,2.71338603,3731.5,3730.8,0.4296]
[1753042201675,0.55,3731.3,3730.4,0.42960001]
[1753042201972,0.55,3731.1,3730.4,0.42960001]
[1753042202173,2.68034305,3730.9,3730.4,0.42960001]
[1753042202330,4.584,3730.8,3730.4,0.42960001]
[1753042202535,4.584,3730.7,3730.5,0.4296]
[1753042202753,2.67982747,3731.6,3730.5,0.4296]
[1753042202956,0.55,3731.2,3730.6,2.68048032]
[1753042203169,2.68011563,3731.2,3730.7,0.4296]
[1753042203394,4.583,3731.1,3730.4,1e-08]
[1753042203552,4.583,3731.0,3730.8,0.4296]
[1753042203761,4.583,3731.0,3730.9,0.4296]
[1753042205165,4.582,3731.0,3730.9,0.4296]
[1753042206778,4.582,3731.0,3730.4,1e-08]
[1753042207001,0.55,3730.8,3730.4,1e-08]
[1753042207296,3.23060581,3730.5,3730.4,1e-08]
[1753042207502,7.81160581,3730.5,3730.4,1e-08]
[1753042207882,0.55,3730.9,3730.4,1.20120001]
[1753042208060,4.58,3730.8,3730.5,0.4296]
[1753042208258,0.55,3730.9,3730.6,0.4296]
[1753042208473,4.58,3730.8,3730.7,0.4296]
[1753042209298,2.68033625,3730.9,3730.4,0.77160001]
[1753042209673,4.579,3730.8,3730.5,0.4296]
[1753042209876,4.579,3730.7,3730.6,0.4296]
[1753042210093,7.25946211,3730.7,3730.4,0.77160001]
[1753042210306,2.68041257,3730.8,3730.4,1.20120001]
[1753042210494,0.7712,3731.4,3730.5,0.4296]
[1753042210495,4.579,3730.6,3730.5,0.4296]
[1753042210905,4.579,3730.6,3730.4,0.77160001]
[1753042211091,2.68060581,3730.5,3730.4,1e-08]
[1753042211415,0.1336,3730.6,3730.4,0.42960001]
[1753042211618,3.002,3731.8,3730.4,1e-08]
[1753042211774,0.1336,3731.1,3730.5,0.9607]
[1753042211978,4.578,3731.0,3730.5,3.64128056]
[1753042212179,7.25826463,3731.0,3730.6,0.4296]
[1753042212382,2.68032337,3730.9,3730.6,0.4296]
[1753042212578,7.25826845,3731.0,3730.6,0.4296]
[1753042212814,2.68042669,3730.8,3730.6,0.4296]
[1753042213013,4.578,3731.0,3730.5,0.1336]
[1753042213316,3.36393591,3730.9,3730.4,1e-08]
[1753042213515,3.36393591,3730.9,3730.5,0.4296]
[1753042213818,0.6836,3730.9,3730.6,0.4296]
[1753042213978,4.577,3730.8,3730.6,0.4296]
[1753042214384,4.577,3730.8,3730.4,1e-08]
[1753042214586,7.25739059,3730.8,3730.4,0.42960001]
[1753042215108,5.40360483,3730.7,3730.4,1e-08]
[1753042215289,2.68060581,3730.5,3730.4,1e-08]
[1753042215489,3.26411338,3730.5,3730.4,1e-08]
[1753042216194,3.23060581,3730.5,3730.4,1e-08]
[1753042216515,4.575,3730.5,3730.4,0.42960001]
[1753042217322,0.1336,3730.6,3730.4,0.42960001]
[1753042217481,0.55,3731.1,3730.5,0.4296]
[1753042217685,0.6836,3730.9,3730.5,0.4296]
[1753042217884,0.6836,3730.9,3730.6,0.4296]
[1753042218122,0.6836,3730.9,3730.5,2.68057801]
[1753042218123,4.573,3730.8,3730.5,2.68057801]
[1753042218420,7.25339026,3730.8,3730.7,0.4296]
[1753042218617,4.573,3730.8,3730.4,1e-08]
[1753042218927,4.573,3730.7,3730.5,0.4296]
[1753042219503,4.573,3730.7,3730.6,0.4296]
[1753042220420,4.572,3730.7,3730.6,0.4296]
[1753042220624,0.6836,3730.9,3730.6,0.4296]
[1753042221128,4.571,3730.8,3730.6,0.4296]
[1753042221292,0.1336,3730.9,3730.7,0.4296]
[1753042221492,4.571,3730.8,3730.7,2.68044498]
[1753042222302,4.571,3730.8,3730.7,3.11004498]
[1753042222643,4.571,3730.8,3730.5,0.9172]
[1753042222934,3.23060581,3730.5,3730.4,1e-08]
[1753042223087,7.80060581,3730.5,3730.4,1e-08]
[1753042223510,2.6808214,3730.2,3730.1,1e-08]
[1753042223727,7.7998214,3730.2,3730.1,1e-08]
[1753042223897,8.58315448,3730.2,3730.1,1e-08]
[1753042226136,4.01415448,3730.2,3730.1,1e-08]
[1753042226342,8.58115448,3730.2,3730.1,1e-08]
[1753042226544,9.40245448,3730.2,3730.1,1e-08]
[1753042226703,5.15463308,3730.2,3730.1,1e-08]
[1753042226908,4.0521214,3730.2,3730.1,1e-08]
[1753042227408,8.6191214,3730.2,3730.1,1e-08]